bitfinex/quotes_ETHUSD_20241204
["timestamp","ask_amount","ask_price","bid_price","bid_amount"]
[1733294117050,0.57880062,3685.7,3685.2,0.7944]
[1733294117253,2.71292,3686.1,3685.2,0.7944]
[1733294118166,2.71274,3686.3,3685.2,0.7944]
[1733294119934,2.71282,3686.2,3685.2,0.7944]
[1733294120256,3.04198206,3686.2,3685.2,0.7944]
[1733294121128,2.71293,3686.1,3685.2,0.7944]
[1733294122584,2.71298,3686.0,3685.2,0.7944]
[1733294123437,2.71305,3685.9,3685.2,0.7944]
[1733294125240,0.7512,3686.1,3685.2,0.7944]
[1733294125445,2.71304,3685.9,3685.2,0.7944]
[1733294125639,2.71341,3685.4,3684.4,0.8018]
[1733294125959,2.71311,3685.8,3684.4,0.8018]
[1733294126587,2.71341,3685.4,3684.4,0.8018]
[1733294126791,2.71341,3685.4,3684.5,0.55]
[1733294127083,2.71341,3685.4,3684.5,0.8128]
[1733294127289,2.984751,3685.4,3684.6,0.55]
[1733294127458,2.71364,3685.1,3684.5,0.8128]
[1733294127644,2.7137,3685.0,3684.5,0.8128]
[1733294127843,0.271341,3685.4,3684.5,0.8128]
[1733294128080,2.71356,3685.2,3684.5,0.8128]
[1733294128606,2.71368,3685.1,3684.5,0.8128]
[1733294128892,2.7137,3685.0,3684.5,0.8128]
[1733294129997,2.71379,3684.9,3684.5,0.8128]
[1733294130201,0.271379,3684.8,3684.5,0.8128]
[1733294130358,2.985239,3684.8,3684.5,0.8128]
[1733294130692,1.055079,3684.8,3683.7,0.2715]
[1733294130888,1.055079,3684.8,3683.6,0.7898]
[1733294130889,0.7837,3684.8,3683.6,0.7898]
[1733294131408,2.71416,3684.4,3683.6,0.7898]
[1733294131702,0.57880062,3684.7,3683.6,0.7898]
[1733294131849,2.71421,3684.4,3683.6,0.7898]
[1733294132054,0.57880062,3684.7,3683.6,0.7898]
[1733294132256,2.71432,3684.2,3683.6,0.7898]
[1733294133589,2.71417,3684.4,3683.6,0.7898]
[1733294134357,3.12164006,3684.6,3683.6,0.7898]
[1733294134564,0.40764006,3684.6,3683.8,0.7898]
[1733294134887,0.57880062,3684.7,3683.8,0.7898]
[1733294135600,0.7837,3685.1,3683.8,0.7898]
[1733294135601,3.57880062,3685.0,3683.8,0.7898]
[1733294135807,0.57880062,3685.0,3683.8,0.7898]
[1733294136666,0.57880062,3685.0,3683.8,0.55]
[1733294136869,0.3762481,3685.3,3684.3,0.814]
[1733294137270,0.57880062,3685.4,3684.3,0.814]
[1733294137271,0.36684087,3685.2,3684.3,0.814]
[1733294140799,3.08040087,3685.2,3684.3,0.814]
[1733294141001,2.71364,3685.1,3684.3,0.814]
[1733294141563,3.29244062,3685.1,3684.3,0.814]
[1733294141977,2.7137,3685.0,3684.3,0.814]
[1733294142306,0.57880062,3685.1,3684.3,0.814]
[1733294142307,0.36593415,3684.9,3684.3,0.814]
[1733294142803,3.29244062,3685.1,3684.3,0.814]
[1733294143363,0.57880062,3685.1,3684.3,0.814]
[1733294143597,2.71371,3685.0,3684.3,0.814]
[1733294144504,3.29251062,3685.0,3684.3,0.814]
[1733294144801,0.57880062,3685.0,3684.3,0.814]
[1733294145003,0.13837006,3684.9,3684.3,0.814]
[1733294148170,0.57880062,3685.1,3684.3,0.814]
[1733294148434,3.29243062,3685.1,3684.3,0.814]
[1733294149913,0.57880062,3685.1,3684.3,0.814]
[1733294150083,2.71386,3684.8,3684.3,0.814]
[1733294150816,3.51636,3684.8,3683.7,0.7515]
[1733294150976,0.40951606,3684.7,3683.7,0.7515]
[1733294153224,0.57880062,3685.0,3683.7,0.7515]
[1733294153525,0.57880062,3684.9,3683.8,0.7515]
[1733294153693,0.57880062,3684.9,3683.8,0.6785]
[1733294156026,3.29258062,3684.9,3683.8,0.6785]
[1733294156526,0.57880062,3684.8,3683.8,0.6785]
[1733294156733,0.90805868,3684.8,3683.8,0.6785]
[1733294157231,0.57880062,3684.8,3683.8,0.6785]
[1733294159587,0.57880062,3685.1,3683.8,0.6785]
[1733294160019,3.29243062,3685.1,3683.8,0.6785]
[1733294160360,0.57880062,3685.1,3683.8,0.6785]
[1733294161163,2.71378,3684.9,3683.8,0.6785]
[1733294161323,0.32925806,3684.8,3683.8,0.6785]
[1733294162158,3.29244062,3685.1,3683.8,0.6785]
[1733294162656,0.57880062,3685.0,3683.8,0.6785]
[1733294162967,3.29252062,3685.0,3683.8,0.6785]
[1733294165648,0.57880062,3684.9,3683.8,0.6785]
[1733294168521,0.57880062,3684.8,3683.8,0.6785]
[1733294168724,0.44605462,3684.7,3683.8,0.6785]
[1733294171778,0.44605462,3684.7,3683.6,0.775]
[1733294172071,0.57880062,3684.8,3683.7,0.775]
[1733294172376,0.57880062,3684.8,3683.8,0.8226]
[1733294177532,3.12660007,3684.9,3683.8,0.8226]
[1733294178872,1.99159884,3684.9,3683.8,0.8226]
[1733294179054,3.12660007,3684.9,3683.8,0.8226]
[1733294179255,0.87107575,3684.8,3683.8,0.8226]
[1733294180268,0.57880062,3684.9,3684.1,0.8023]
[1733294180585,1.13500123,3685.0,3684.3,2.7142]
[1733294180768,2.54776196,3685.1,3684.4,0.8023]
[1733294181072,2.54776196,3685.2,3684.4,0.8023]
[1733294181240,2.54776196,3685.1,3684.4,0.8023]
[1733294181568,2.54776196,3685.2,3684.4,0.8023]
[1733294181777,1.83778711,3685.1,3684.4,0.8023]
[1733294181978,1.41276073,3685.1,3684.4,0.8023]
[1733294182335,2.54776196,3685.1,3684.4,0.8023]
[1733294182537,1.13500123,3685.1,3684.4,0.8023]
[1733294182844,2.54776196,3685.1,3684.5,0.8161]
[1733294183045,1.13500123,3685.4,3684.9,0.8161]
[1733294183248,1.13500123,3685.6,3685.1,0.796]
[1733294183429,2.54760961,3685.7,3685.1,0.796]
[1733294183629,1.70250184,3685.9,3685.1,0.796]
[1733294183630,2.54760961,3685.8,3685.1,0.796]
[1733294183831,1.41260838,3685.7,3685.1,0.796]
[1733294184068,1.41260838,3685.7,3685.2,1.16802555]
[1733294184229,1.8828243,3685.8,3685.2,1.16802555]
[1733294184230,2.16008054,3685.8,3685.4,0.796]
[1733294184435,0.74782307,3685.8,3685.4,0.796]
[1733294184657,3.29508177,3685.8,3685.4,0.796]
[1733294184844,0.74782307,3685.8,3685.4,0.796]
[1733294185027,2.54731439,3685.9,3685.4,0.796]
[1733294185233,1.13500123,3685.9,3685.4,0.796]
[1733294185433,1.79162937,3686.0,3685.4,0.796]
[1733294185434,2.9266306,3686.0,3685.4,0.796]
[1733294185641,2.54707863,3685.9,3685.4,0.796]
[1733294185939,1.13500123,3685.8,3685.4,0.796]
[1733294186279,0.65591222,3685.7,3685.4,0.796]
[1733294186572,1.79091345,3685.7,3685.1,0.8195]
[1733294187233,0.65591222,3685.7,3685.1,0.8195]
[1733294190362,0.64843236,3685.7,3685.1,0.8195]
[1733294191033,1.13500123,3685.6,3685.1,0.8195]
[1733294191367,0.57880062,3685.8,3685.3,2.71348]
[1733294191699,0.57880062,3685.8,3685.4,0.8278]
[1733294192203,0.57880062,3685.8,3685.4,0.82032013]
[1733294192590,1.13500123,3686.0,3685.4,0.82032013]
[1733294192794,0.34163037,3685.9,3685.4,0.82032013]
[1733294195994,1.13500123,3686.2,3685.4,0.82032013]
[1733294196692,1.41055482,3686.2,3685.4,0.82032013]
[1733294197106,2.54555605,3686.2,3685.4,0.82032013]
[1733294197330,1.41055482,3686.2,3685.4,0.82032013]
[1733294197521,1.71380185,3686.3,3685.4,0.82032013]
[1733294197722,0.99125437,3686.2,3685.4,0.82032013]
[1733294197930,0.57880062,3686.3,3685.4,0.82032013]
[1733294198737,0.57880062,3686.2,3685.4,0.82032013]
[1733294201698,0.57880062,3686.3,3685.4,0.82032013]
[1733294204699,0.57880062,3686.2,3685.4,0.82032013]
[1733294206211,0.57880062,3686.2,3685.4,0.59937213]
[1733294206539,0.82853081,3686.2,3685.4,0.59937213]
[1733294207043,0.82853081,3686.2,3685.5,2.71333]
[1733294207205,1.13500123,3686.5,3685.9,2.5866136]
[1733294207398,1.13500123,3686.5,3686.2,2.7128]
[1733294208039,1.13500123,3686.5,3685.9,2.5866136]
[1733294208040,1.13500123,3686.5,3686.3,2.71273]
[1733294208209,1.13500123,3686.5,3686.3,2.5866136]
[1733294208416,1.13500123,3686.5,3686.4,2.71267]
[1733294209561,1.13500123,3686.5,3686.4,3.46307]
[1733294209721,0.57880062,3687.5,3686.5,3.46299]
[1733294210231,0.57880062,3687.5,3686.6,0.7504]
[1733294211021,0.57880062,3687.5,3686.8,0.7504]
[1733294211238,1.26870539,3687.5,3686.8,0.7504]
[1733294211435,1.26870539,3687.5,3686.8,3.46276]
[1733294211728,0.57880062,3688.1,3687.1,0.8239]
[1733294216773,4.10600062,3687.8,3687.1,0.8239]
[1733294216975,1.39430062,3687.8,3687.1,0.8239]
[1733294217902,4.10595062,3687.8,3687.1,0.8239]
[1733294218063,1.39430062,3687.8,3687.1,0.8239]
[1733294218260,2.7118,3687.6,3687.1,0.8239]
[1733294218461,2.7118,3687.6,3686.8,0.7864]
[1733294218890,2.71187,3687.5,3686.8,0.7864]
[1733294219802,2.71202,3687.3,3686.3,0.7882]
[1733294220224,0.57880062,3687.4,3686.3,0.7882]
[1733294220424,0.32906406,3687.3,3686.5,0.8079]
[1733294220788,0.57880062,3687.4,3686.5,0.8079]
[1733294221524,0.57880062,3687.4,3686.5,0.58501927]
[1733294221728,0.57880062,3687.4,3686.4,2.5866136]
[1733294222023,0.57880062,3687.4,3686.4,5.2992736]
[1733294222182,0.57880062,3687.4,3686.5,2.71257]
[1733294222385,0.57880062,3687.4,3686.8,2.5866136]
[1733294222785,0.57880062,3687.6,3686.8,2.5866136]
[1733294223036,0.57880062,3687.6,3687.0,2.71222]
[1733294224336,0.57880062,3688.3,3687.3,0.753]
[1733294224505,0.70632306,3688.2,3687.3,0.753]
[1733294225585,3.41768306,3688.2,3687.3,0.753]
[1733294226493,0.70632306,3688.2,3687.3,0.753]
[1733294226912,0.57880062,3688.3,3687.3,2.712]
[1733294227094,0.57880062,3688.3,3687.4,0.7646]
[1733294227298,0.57880062,3688.3,3687.5,2.71185]
[1733294227518,0.57880062,3688.3,3687.6,0.7646]
[1733294228948,0.57880062,3688.5,3687.6,0.7646]
[1733294229102,0.98925168,3688.5,3687.6,0.7646]
[1733294229739,0.41045106,3688.5,3687.7,0.8014]
[1733294229949,3.57880062,3689.0,3687.9,0.8014]
[1733294232429,3.57880062,3689.0,3687.9,3.51294]
[1733294232748,0.49606637,3688.9,3688.1,0.8095]
[1733294232959,3.57880062,3689.3,3688.0,0.8095]
[1733294233155,0.55310719,3689.5,3688.4,0.8095]
[1733294233156,0.57880062,3689.5,3688.4,0.8095]
[1733294233445,0.57880062,3689.7,3688.6,2.71105]
[1733294233647,0.57880062,3689.7,3688.7,0.8095]
[1733294235444,0.57880062,3689.7,3688.7,2.71096]
[1733294235650,0.57880062,3689.7,3688.8,0.7956]
[1733294237637,0.57880062,3690.0,3689.0,0.7525]
[1733294238274,4.37855268,3690.2,3689.0,0.7525]
[1733294238479,1.37855268,3690.2,3689.0,0.7525]
[1733294239238,2.70995,3690.1,3689.0,0.7525]
[1733294240836,1.37855268,3690.2,3689.0,0.7525]
[1733294240837,1.37855268,3690.2,3689.2,2.71059]
[1733294241042,0.57880062,3690.2,3689.4,0.8098]
[1733294243781,2.70995,3690.1,3689.4,0.8098]
[1733294245035,0.7778,3690.3,3689.4,0.8098]
[1733294245340,2.70989,3690.2,3689.4,0.8098]
[1733294246202,2.70997,3690.1,3689.4,0.8098]
[1733294247881,1.35660062,3690.3,3689.4,0.8098]
[1733294248180,2.86154181,3690.2,3689.4,0.8098]
[1733294248876,0.15166181,3690.2,3689.4,0.8098]
[1733294254690,2.86154181,3690.2,3689.4,0.8098]
[1733294255369,0.15166181,3690.2,3689.4,0.8098]
[1733294255557,0.57880062,3690.4,3689.4,2.71042]
[1733294255895,0.57880062,3690.4,3689.5,0.8007]
[1733294256567,3.28854062,3690.4,3689.5,0.8007]
[1733294257566,2.70983,3690.3,3689.5,0.8007]
[1733294257773,0.34486481,3690.2,3689.5,0.8007]
[1733294258068,0.57880062,3690.4,3689.5,0.8007]
[1733294258278,2.70995,3690.1,3689.5,0.8007]
[1733294258575,3.47625,3690.1,3689.5,0.8007]
[1733294259286,2.70995,3690.1,3689.5,0.8007]
[1733294261409,0.347625,3690.0,3689.5,0.8007]
[1733294261605,2.71012,3689.9,3689.5,0.8007]
[1733294261783,2.71012,3689.9,3688.8,5.71085]
[1733294261784,3.28892062,3689.9,3688.9,0.7802]
[1733294262569,0.57880062,3689.9,3689.0,0.7544]
[1733294262822,0.57880062,3689.9,3689.1,0.7544]
[1733294263614,0.57880062,3689.9,3689.4,0.4992]
[1733294263907,0.90766868,3689.9,3689.4,0.4992]
[1733294264092,0.90766868,3689.9,3689.5,0.7759]
[1733294264795,0.32886806,3689.9,3689.5,0.7759]
[1733294265809,0.32886806,3689.9,3689.4,0.4992]
[1733294267371,2.71017,3689.8,3689.4,0.4992]
[1733294267713,3.49466,3689.7,3689.4,0.4992]
[1733294269678,2.25409749,3689.9,3689.4,0.4992]
[1733294269984,1.11909626,3689.9,3689.5,0.771]
[1733294270703,0.57880062,3689.9,3689.5,0.771]
[1733294270879,0.57880062,3689.8,3689.5,0.771]
[1733294272210,0.57880062,3689.8,3689.4,0.4992]
[1733294273344,1.46553953,3689.8,3689.4,0.4992]
[1733294273560,2.60054076,3689.8,3689.4,0.4992]
[1733294273853,2.02174014,3689.8,3689.4,0.4992]
[1733294274843,3.42948169,3689.8,3689.4,0.4992]
[1733294275164,2.02174014,3689.8,3689.4,0.4992]
[1733294275650,1.13500123,3689.7,3689.4,0.4992]
[1733294277068,2.54274278,3689.7,3689.4,0.4992]
[1733294277353,1.13500123,3689.7,3689.4,0.4992]
[1733294277561,1.13500123,3689.6,3689.4,0.4992]
[1733294277717,2.54274278,3689.7,3689.4,0.4992]
[1733294277919,1.13500123,3689.6,3689.4,0.4992]
[1733294278221,1.13500123,3689.5,3689.4,0.4992]
[1733294278631,1.41035963,3689.5,3689.4,0.4992]
[1733294279142,2.54799566,3689.5,3689.4,0.4992]
[1733294279349,2.54799566,3689.6,3689.4,0.4992]
[1733294279542,1.41035963,3689.5,3689.4,0.4992]
[1733294279954,1.13763603,3689.6,3689.4,0.4992]
[1733294280155,1.41035963,3689.6,3689.4,0.4992]
[1733294280363,1.13763603,3689.7,3689.5,0.7988]
[1733294280531,2.54799566,3689.6,3689.5,0.7988]
[1733294280715,1.13763603,3689.6,3689.5,0.7988]
[1733294280919,2.54799566,3689.6,3689.5,0.7988]
[1733294281118,1.13763603,3689.6,3689.5,0.7988]
[1733294281360,2.54799566,3689.6,3689.5,0.7988]
[1733294281527,1.13763603,3689.7,3689.5,0.7988]
[1733294281732,2.54919492,3689.6,3689.5,0.7988]
[1733294282327,2.54919492,3689.7,3689.5,0.7988]
[1733294282673,1.41155889,3689.6,3689.5,0.7988]
[1733294282823,3.53923041,3689.6,3689.4,0.4992]
[1733294283025,3.11406073,3689.5,3689.4,0.4992]
[1733294283359,3.11894136,3689.5,3689.4,0.4992]
[1733294284931,1.41155889,3689.5,3689.4,0.4992]
[1733294285522,6.11894136,3689.5,3689.4,0.4992]
[1733294285744,7.28486949,3689.5,3689.4,0.4992]
[1733294286562,7.28520391,3689.5,3689.4,0.4992]
[1733294287271,1.41189331,3689.5,3689.4,0.4992]
[1733294288263,3.11927578,3689.5,3689.4,0.4992]
[1733294289443,2.55017222,3689.5,3689.4,2.43162451]
[1733294289760,1.13827891,3689.7,3689.4,2.43162451]
[1733294290070,2.55001604,3689.8,3689.4,2.43162451]
[1733294290276,1.41173713,3689.7,3689.4,2.43162451]
[1733294290568,1.41165151,3689.7,3689.4,5.14208451]
[1733294290740,1.13827891,3689.8,3689.4,5.14208451]
[1733294291260,1.13827891,3689.9,3689.8,2.71017]
[1733294291458,1.13827891,3690.2,3690.0,0.7677]
[1733294291662,1.4111698,3690.1,3690.0,0.7677]
[1733294291978,1.70738247,3690.4,3690.0,0.7677]
[1733294291979,2.54936687,3690.3,3690.0,0.7677]
[1733294292132,1.13827891,3690.3,3690.0,0.7677]
[1733294292331,1.13827891,3690.3,3690.0,3.4777]
[1733294292526,2.54934729,3690.4,3690.0,3.4777]
[1733294292830,2.70936479,3690.5,3690.3,2.32944902]
[1733294293031,0.1600175,3690.5,3690.4,3.51753]
[1733294293728,0.1600175,3690.5,3690.4,6.09597563]
[1733294296589,0.1600175,3690.5,3690.4,6.64597563]
[1733294298139,0.1600175,3690.5,3690.4,4.06753]
[1733294298544,0.1600175,3690.5,3690.4,1.3578]
[1733294298764,0.1600175,3690.5,3690.4,0.8078]
[1733294299788,0.1600175,3690.5,3690.1,0.776]
[1733294302349,2.8696775,3690.5,3689.5,0.776]
[1733294302548,0.8263,3690.4,3689.5,0.776]
[1733294302749,2.70983,3690.3,3689.5,0.776]
[1733294303271,2.70999,3690.1,3689.4,0.4992]
[1733294304486,2.71003,3690.0,3689.4,0.4992]
[1733294304648,0.8177,3689.8,3689.4,0.4992]
[1733294304991,0.7402,3689.8,3689.4,0.4992]
[1733294306561,2.70994,3690.2,3689.4,0.4992]
[1733294306886,2.70996,3690.1,3689.4,0.4992]
[1733294308052,3.52766,3690.1,3689.4,0.4992]
[1733294309070,2.70996,3690.1,3689.4,0.4992]
[1733294309385,3.5381,3689.9,3689.4,0.4992]
[1733294309548,2.71032,3689.6,3689.4,0.4992]
[1733294309749,1.18181,3689.9,3689.4,0.4992]
[1733294310806,2.71025,3689.7,3689.4,0.4992]
[1733294311687,1.18181,3689.9,3689.4,0.4992]
[1733294311892,3.89192,3689.9,3689.4,0.4992]
[1733294312120,3.53811,3689.9,3689.4,0.4992]
[1733294312901,4.11691062,3689.9,3689.4,0.4992]
[1733294313696,2.71017,3689.8,3689.4,0.4992]
[1733294314095,0.57880062,3689.8,3689.4,0.4992]
[1733294314393,2.71039,3689.5,3689.4,0.4992]
[1733294315719,5.71039,3689.5,3689.4,0.4992]
[1733294317120,2.85093006,3689.7,3689.4,0.4992]
[1733294317282,3.0,3689.6,3689.4,0.4992]
[1733294317488,3.83960096,3689.6,3689.4,0.4992]
[1733294317687,3.57880062,3689.8,3689.4,0.4992]
[1733294317903,0.57880062,3689.8,3689.4,0.4992]
[1733294318581,3.0,3689.7,3689.4,0.4992]
[1733294320088,3.28898062,3689.8,3689.4,0.4992]
[1733294320089,2.71034,3689.6,3689.4,0.4992]
[1733294320321,3.0,3689.5,3689.4,0.4992]
[1733294323332,6.33930406,3689.5,3689.4,0.4992]
[1733294324590,6.62172793,3689.5,3689.4,0.4992]
[1733294327696,7.43292793,3689.5,3689.4,0.4992]
[1733294330643,9.41804272,3689.5,3689.4,0.4992]
[1733294330821,10.55632163,3689.5,3689.4,0.4992]
[1733294331023,9.41804272,3689.5,3689.4,0.4992]
[1733294331261,9.41810308,3689.5,3689.4,0.4992]
[1733294331705,10.58357352,3689.5,3689.4,0.4992]
[1733294332332,12.29095599,3689.5,3689.4,0.4992]
[1733294332768,11.74904396,3689.5,3689.4,0.4992]
[1733294333582,12.00081445,3689.5,3689.4,0.4992]
[1733294334581,13.13406454,3689.5,3689.4,0.4992]
[1733294335541,18.67320572,3689.5,3689.4,1.81e-06]
[1733294335746,19.2473381,3689.5,3689.4,1.81e-06]
[1733294336053,3.0,3688.9,3688.1,0.7833]
[1733294336241,3.0,3689.2,3688.1,0.7833]
[1733294336475,2.71061,3689.2,3688.3,0.7833]
[1733294336679,3.0,3689.1,3688.3,0.7833]
[1733294337986,6.28927062,3689.4,3688.3,0.7833]
[1733294339023,3.57880062,3689.4,3688.3,0.7833]
[1733294339177,3.0,3689.2,3688.3,0.7833]
[1733294339594,3.0,3689.4,3688.4,0.8005]
[1733294340083,0.28245433,3689.1,3688.4,0.8005]
[1733294343209,0.28245433,3689.1,3688.1,0.7753]
[1733294343210,0.8181,3689.0,3688.1,0.7753]
[1733294343411,3.8181,3689.0,3688.1,0.7753]
[1733294344096,2.99313433,3689.1,3688.1,0.7753]
[1733294344301,0.28245433,3689.1,3688.1,0.7753]
[1733294344542,3.0,3688.9,3688.1,0.7753]
[1733294344842,0.28245433,3689.1,3688.0,0.55]
[1733294345007,0.28245433,3689.1,3688.2,2.71134]
[1733294345339,0.28245433,3689.1,3688.1,0.8059]
[1733294345512,0.28245433,3689.1,3688.2,0.7623]
[1733294345717,0.28245433,3689.1,3688.3,0.7623]
[1733294354777,1.69276299,3689.1,3688.3,0.7623]
[1733294355069,1.69276063,3689.1,3688.3,0.7623]
[1733294356461,0.28245433,3689.1,3688.3,0.7623]
[1733294357742,1.41559452,3689.1,3688.3,0.7623]
[1733294358780,0.28245433,3689.1,3688.3,0.7623]
[1733294358942,1.41559452,3689.1,3688.3,0.7623]
[1733294359500,2.82590082,3689.1,3688.3,0.7623]
[1733294359674,2.68522327,3689.1,3688.3,0.7623]
[1733294359870,4.09552957,3689.1,3688.3,0.7623]
[1733294360182,1.55208308,3689.1,3688.3,0.7623]
[1733294360493,4.09644848,3689.1,3688.3,0.7623]
[1733294360708,2.68522327,3689.1,3688.3,0.7623]
[1733294360999,0.28245433,3689.1,3688.3,0.7623]
[1733294361497,0.28245433,3689.1,3688.4,2.71118]
[1733294361681,0.28245433,3689.1,3688.6,1.16500471]
[1733294363097,0.28245433,3689.1,3688.9,1.16500471]
[1733294366182,0.28245433,3689.1,3689.0,0.7821]
[1733294366403,0.28245433,3689.1,3689.0,0.97681047]
[1733294366866,0.28245433,3689.1,3689.0,0.7821]
[1733294369928,0.28245433,3689.1,3689.0,1.94710471]
[1733294372935,0.28245433,3689.1,3689.0,4.65786471]
[1733294373140,3.7961,3690.0,3689.0,4.65786471]
[1733294373339,3.7961,3690.0,3689.5,1.16500471]
[1733294373340,0.28303959,3689.7,3689.5,1.16500471]
[1733294373534,0.28303959,3689.7,3689.5,1.96340471]
[1733294377555,0.28303959,3689.7,3689.5,0.7984]
[1733294379556,0.28303959,3689.7,3689.5,0.7984]
[1733294381787,0.28303959,3689.7,3689.6,2.71032]
[1733294382078,0.28303959,3689.7,3689.6,3.46572]
[1733294383552,0.28303959,3689.7,3689.6,6.04453729]
[1733294388287,0.28303959,3689.7,3689.6,9.04453729]
[1733294388601,0.28303959,3689.7,3689.6,9.59453729]
[1733294388800,0.28303959,3689.7,3689.6,10.98425268]
[1733294390906,0.28303959,3689.7,3689.6,10.43425268]
[1733294394914,0.28303959,3689.7,3689.6,4.10003539]
[1733294395073,0.28303959,3689.7,3689.6,2.71032]
[1733294395812,0.28303959,3689.7,3689.6,5.71032]
[1733294397081,0.28303959,3689.7,3689.6,2.71032]
[1733294397997,0.28303959,3689.7,3689.5,0.46739847]
[1733294398214,0.28303959,3689.7,3689.5,3.46739847]
[1733294398413,0.28303959,3689.7,3689.6,2.71032]
[1733294398823,0.28303959,3689.7,3689.6,3.49576752]
[1733294399033,0.28303959,3689.7,3689.6,3.46866795]
[1733294399600,0.28303959,3689.7,3689.6,4.26066795]
[1733294403712,0.28303959,3689.7,3689.6,5.42480479]
[1733294405908,0.28303959,3689.7,3689.6,5.45190306]
[1733294406235,0.28303959,3689.7,3689.6,5.45190294]
[1733294408033,0.28303959,3689.7,3689.6,5.42480479]
[1733294408831,0.9496175,3690.5,3689.8,2.71013]
[1733294409849,0.9496175,3690.5,3689.6,2.71448479]
[1733294410061,0.9496175,3690.5,3690.0,1.16413684]
[1733294410260,0.9496175,3690.5,3689.6,2.71024]
[1733294410422,0.9496175,3690.5,3689.8,1.16413684]
[1733294410619,0.7948,3690.4,3689.4,0.53969441]
[1733294410822,0.7948,3690.2,3689.4,1.70383125]
[1733294411555,0.7948,3690.2,3689.4,0.53969441]
[1733294411713,0.7948,3690.1,3689.4,0.53969441]
[1733294412121,0.7948,3690.1,3689.3,0.04345935]
[1733294412746,1.37360062,3690.1,3689.3,0.04345935]
[1733294412956,1.27609594,3690.0,3689.3,0.04345935]
[1733294413153,0.8311,3690.0,3689.3,2.75398935]
[1733294413316,0.8311,3690.0,3689.4,1.16413684]
[1733294414118,0.28330124,3689.9,3689.4,1.19123938]
[1733294414347,0.28330124,3689.9,3689.4,3.87459684]
[1733294415647,0.28330124,3689.9,3689.6,1.16413684]
[1733294417063,0.28330124,3689.9,3689.6,3.87444684]
[1733294417221,0.28330124,3689.9,3689.4,2.71045]
[1733294417425,0.28330124,3689.9,3689.4,3.87458684]
[1733294418423,0.28330124,3689.9,3689.4,1.16413684]
[1733294420247,0.28330124,3689.9,3689.2,1.16413684]
[1733294420761,0.7885,3689.8,3689.2,1.16413684]
[1733294423658,0.7885,3689.8,3689.1,3.26241507]
[1733294423866,0.7885,3689.8,3689.1,0.55174507]
[1733294424063,0.7885,3689.8,3689.1,1.16413684]
[1733294424243,1.16667512,3689.8,3689.1,1.16413684]
[1733294424446,0.8327,3689.7,3689.1,1.16413684]
[1733294425639,0.8327,3689.7,3689.3,1.16413684]
[1733294425830,0.8327,3689.7,3689.5,1.16413684]
[1733294427572,0.8327,3689.7,3689.3,1.16413684]
[1733294434487,0.8327,3689.7,3689.0,0.54010507]
[1733294434639,0.8327,3689.7,3689.1,1.16413684]
[1733294435940,0.8327,3689.7,3689.3,1.16413684]
[1733294442103,0.8327,3689.7,3689.1,1.16413684]
[1733294442302,0.8135,3689.5,3688.5,0.7812]
[1733294442595,0.8135,3689.4,3688.4,1.16413684]
[1733294442894,0.8135,3689.2,3688.3,1.16413684]
[1733294443048,0.8135,3689.2,3688.0,2.71144]
[1733294443245,2.71061,3689.2,3688.0,2.71144]
[1733294443449,0.8135,3689.1,3688.3,1.70294852]
[1733294444598,0.8135,3689.1,3688.3,0.53881168]
[1733294444752,0.77,3688.9,3688.4,1.16413684]
[1733294445157,0.767,3688.8,3687.6,3.80185827]
[1733294445403,0.767,3688.8,3687.7,1.69667928]
[1733294445601,2.71085,3688.9,3687.6,3.51489556]
[1733294445602,0.767,3688.7,3687.6,1.1779824]
[1733294445957,2.71113,3688.5,3687.6,0.01384556]
[1733294446159,1.032713,3688.4,3687.6,0.01384556]
[1733294446468,0.271113,3688.4,3687.6,0.01384556]
[1733294446704,0.7616,3688.5,3687.6,0.01384556]
[1733294447688,0.7758,3688.3,3687.6,0.01384556]
[1733294447902,0.7758,3687.7,3687.6,0.01384556]
[1733294448273,2.71171,3687.7,3687.6,0.01384556]
[1733294448473,3.93297475,3687.7,3687.6,0.01384556]
[1733294448695,4.51177537,3687.7,3687.6,0.01384556]
[1733294449073,0.57880062,3687.6,3686.5,3.87671684]
[1733294449397,0.7758,3687.5,3686.5,3.87671684]
[1733294449597,0.7758,3687.5,3686.5,2.71258]
[1733294449801,0.7758,3687.5,3686.6,0.348608]
[1733294450211,0.7758,3687.5,3686.5,2.58425953]
[1733294450703,0.76875015,3687.5,3686.6,2.7125]
[1733294451261,0.76875015,3687.5,3686.5,2.58425953]
[1733294451567,0.76875015,3687.5,3686.3,3.48619]
[1733294452298,2.71187,3687.5,3686.3,4.02407309]
[1733294452500,2.71187,3687.5,3686.4,0.66083326]
[1733294452878,2.71187,3687.5,3686.4,0.6537834]
[1733294453090,2.71187,3687.5,3686.3,4.02407309]
[1733294453289,0.57880062,3687.4,3686.3,0.53788309]
[1733294453493,0.7975,3687.0,3685.7,0.8003]
[1733294453677,0.7975,3686.9,3685.7,0.8003]
[1733294454009,0.7975,3686.7,3685.7,0.351352]
[1733294454376,0.7975,3686.7,3685.5,2.7133]
[1733294454813,0.7975,3686.6,3685.2,3.26982568]
[1733294455215,0.7975,3686.6,3685.5,2.7133]
[1733294455976,0.7975,3686.6,3685.6,2.71324]
[1733294457346,0.7975,3686.6,3685.3,2.61138899]
[1733294457526,0.7975,3686.6,3685.8,2.71306]
[1733294458044,0.7975,3686.6,3685.9,2.71302]
[1733294458216,0.28326904,3686.5,3686.3,2.71272]
[1733294460431,0.28326904,3686.5,3686.4,2.58425953]
[1733294460746,0.7907,3687.3,3687.0,2.71221]
[1733294461042,0.28323221,3687.0,3686.9,2.71229]
[1733294461201,0.28323221,3687.0,3686.9,4.07434495]
[1733294461712,0.7907,3687.7,3687.3,2.712]
[1733294461912,0.28321874,3687.5,3687.3,2.712]
[1733294462433,0.28321874,3687.5,3686.9,1.36205495]
[1733294462636,0.28321874,3687.5,3687.2,2.71206]
[1733294464138,0.28321874,3687.5,3686.7,2.71239]
[1733294464367,0.28321874,3687.5,3687.0,2.71222]
[1733294464851,0.28321874,3687.5,3686.7,2.71239]
[1733294465143,0.8213,3687.4,3686.7,2.71239]
[1733294465503,0.8213,3687.4,3686.6,2.71251]